fUST/lending_fUST_20240901
["ID","MTS","AMOUNT","RATE_DAILY","PERIOD"]
[336822309,1725192426264,-300.0,0.00024998,2]
[336822310,1725192426284,-500.0,0.00024999,2]
[336822311,1725192426304,-500.0,0.00024999,2]
[336822312,1725192426325,-500.85306537,0.00024999,2]
[336822313,1725192426345,-500.0,0.00024999,2]
[336822314,1725192426366,-500.0,0.00024999,2]
[336822315,1725192426386,-500.0,0.00024999,2]
[336822316,1725192426407,-500.0,0.00024999,2]
[336822317,1725192426430,-506.27679931,0.00024999,2]
[336822318,1725192426450,-500.0,0.00024999,2]
[336822319,1725192426470,-500.0,0.00024999,2]
[336822320,1725192426490,-500.0,0.00024999,2]
[336822321,1725192426516,-500.0,0.00024999,2]
[336822322,1725192426538,-500.0,0.00024999,2]
[336822323,1725192426560,-503.1577691,0.00024999,2]
[336822324,1725192426580,-500.0,0.00024999,2]
[336822325,1725192426599,-502.82497924,0.00024999,2]
[336822326,1725192426619,-500.0,0.00024999,2]
[336822327,1725192426638,-693.59,0.00024999,2]
[336822328,1725192426658,-500.0,0.00024999,2]
[336822329,1725192426681,-540.93524496,0.00024999,2]
[336822330,1725192426701,-500.0,0.00024999,2]
[336822331,1725192426720,-500.0,0.00024999,2]
[336822332,1725192426744,-500.0,0.00024999,2]
[336822333,1725192426764,-536.3871627,0.00024999,2]
[336822334,1725192426783,-500.0,0.00024999,2]
[336822335,1725192426804,-500.0,0.00024999,2]
[336822336,1725192426824,-789.57,0.00024999,2]
[336822337,1725192426843,-500.0,0.00024999,2]
[336822338,1725192426863,-500.0,0.00024999,2]
[336822339,1725192426883,-375.33459274,0.00024999,2]
[336822340,1725192430276,-128.58858664,0.00024999,2]
[336822341,1725192430297,-500.0,0.00024999,2]
[336822342,1725192430318,-320.74701786,0.00024999,2]
[336822343,1725192430339,-500.0,0.00024999,2]
[336822344,1725192430360,-500.0,0.00024999,2]
[336822345,1725192430381,-504.7286352,0.00024999,2]
[336822346,1725192430405,-500.0,0.00024999,2]
[336822347,1725192430428,-493.70289063,0.00024999,2]
[336822348,1725192432736,-8.63533848,0.00024999,2]
[336822349,1725192432756,-507.15802824,0.00024999,2]
[336822350,1725192432776,-500.0,0.00024999,2]
[336822351,1725192432795,-504.04593311,0.00024999,2]
[336822352,1725192432816,-537.76895376,0.00024999,2]
[336822353,1725192432837,-1391.08659977,0.00025169,2]
[336822354,1725192432858,-772.2176956,0.0002517,2]
[336822355,1725192432881,-772.2176956,0.00025239,2]
[336822356,1725192432902,-317.48,0.0002526,3]
[336822357,1725192432924,-338.55885238,0.00025261,3]
[336822358,1725192437333,-6278.38663686,0.00025261,3]
[336822359,1725192454114,-264.56,0.0002526,3]
[336822360,1725192454137,-54.27659054,0.0002526,3]
[336822361,1725192549285,-1000.0,0.00025,25]
[336822362,1725192549305,-7112.0,0.0002522,2]
[336822363,1725192549325,-300.0,0.00025259,2]
[336822364,1725192549345,-211.42,0.0002526,3]
[336822365,1725192549366,-176.19,0.0002526,3]
[336822366,1725192549386,-880.96,0.0002526,3]
[336822367,1725192549407,-8078.33957086,0.0002526,3]
[336822368,1725192549427,-8078.33957086,0.00025261,3]
[336822369,1725192549447,-500.0,0.00025268,2]
[336822370,1725192549468,-2132.33,0.00025268,2]
[336822371,1725192549488,-500.0,0.00025268,2]
[336822372,1725192549509,-500.0,0.00025268,2]
[336822373,1725192549532,-500.0,0.00025268,2]
[336822374,1725192549556,-500.0,0.00025269,2]
[336822375,1725192549576,-500.0,0.00025269,2]
[336822376,1725192549600,-274.27351171,0.00025269,2]
[336822377,1725192549620,-500.0,0.00025269,2]
[336822378,1725192549645,-500.0,0.00025269,2]
[336822379,1725192549667,-500.0,0.00025269,2]
[336822380,1725192549688,-500.0,0.00025269,2]
[336822381,1725192549708,-500.0,0.00025269,2]
[336822382,1725192549735,-500.0,0.00025269,2]
[336822383,1725192549757,-500.0,0.00025269,2]
[336822384,1725192549781,-500.0,0.00025269,2]
[336822385,1725192549805,-500.0,0.00025269,2]
[336822386,1725192549835,-500.0,0.00025269,2]
[336822387,1725192549858,-500.0,0.00025269,2]
[336822388,1725192549887,-500.0,0.00025269,2]
[336822389,1725192549913,-630.24086037,0.00025269,2]
[336822390,1725192549938,-500.0,0.00025269,2]
[336822391,1725192549967,-500.0,0.00025269,2]
[336822392,1725192549993,-500.0,0.00025269,2]
[336822393,1725192550022,-8250.99,0.00025269,2]
[336822394,1725192550046,-500.0,0.00025269,2]
[336822395,1725192550070,-500.0,0.00025269,2]
[336822396,1725192550097,-2191.27,0.00025269,2]
[336822397,1725192550120,-1692.33,0.00025269,2]
[336822398,1725192550143,-1383.39,0.00025269,2]
[336822399,1725192550167,-514.75,0.00025269,2]
[336822400,1725192550189,-500.0,0.00025269,2]
[336822401,1725192550212,-500.0,0.00025269,2]
[336822402,1725192550238,-500.0,0.00025269,2]
[336822403,1725192550261,-1372.45,0.00025269,2]
[336822404,1725192550281,-649.86,0.00025269,2]
[336822405,1725192550303,-2082.74,0.00025269,2]
[336822406,1725192550324,-500.0,0.00025269,2]
[336822407,1725192550346,-12586.71,0.00025269,2]
[336822408,1725192550369,-2887.41,0.00025269,2]
[336822409,1725192550392,-689.77,0.00025269,2]
[336822410,1725192550416,-3325.33,0.00025269,2]
[336822411,1725192550438,-1584.26,0.00025269,2]
[336822412,1725192550463,-302.37385269,0.00025269,2]
[336822413,1725192550485,-500.0,0.00025269,2]
[336822414,1725192550670,-604.73,0.00025269,2]
[336822415,1725192550692,-1027.88,0.00025269,2]
[336822416,1725192550714,-500.0,0.00025269,2]
[336822417,1725192550735,-1132.07,0.00025269,2]
[336822418,1725192550756,-566.62755411,0.00025269,2]
[336822419,1725192550777,-500.0,0.00025269,2]
[336822420,1725192550799,-509.52,0.00025269,2]
[336822421,1725192550821,-500.0,0.00025269,2]
[336822422,1725192550845,-500.0,0.0002527,2]
[336822423,1725192550865,-520.48181989,0.0002527,2]
[336822424,1725192550886,-500.0,0.0002527,2]
[336822425,1725192550907,-504.63088037,0.0002527,2]
[336822426,1725192550929,-505.59845591,0.0002527,2]
[336822427,1725192550949,-500.0,0.0002527,2]
[336822428,1725192550970,-612.47719125,0.0002527,2]
[336822429,1725192555451,-157.251294,0.00024439,2]
[336822430,1725192555474,-157.251294,0.00024524,2]
[336822431,1725192555497,-157.251294,0.00024608,2]
[336822432,1725192555520,-157.251294,0.00024693,2]
[336822433,1725192555542,-157.251294,0.00024778,2]
[336822434,1725192555568,-157.251294,0.00024863,2]
[336822435,1725192555591,-157.251294,0.00024948,2]
[336822436,1725192555612,-157.251294,0.00025033,2]
[336822437,1725192555634,-157.251294,0.00025118,2]
[336822438,1725192555655,-157.251294,0.00025203,2]
[336822439,1725192555676,-500.0,0.00025268,2]
[336822440,1725192555696,-369.35280875,0.0002527,2]
[336822441,1725192555717,-500.0,0.0002527,2]
[336822442,1725192555737,-500.0,0.0002527,2]
[336822443,1725192555759,-500.0,0.0002527,2]
[336822444,1725192555779,-500.0,0.0002527,2]
[336822445,1725192555800,-500.0,0.0002527,2]
[336822446,1725192555822,-502.89593893,0.0002527,2]
[336822447,1725192555844,-500.0,0.0002527,2]
[336822448,1725192555867,-500.0,0.0002527,2]
[336822449,1725192555888,-500.0,0.0002527,2]
[336822450,1725192555908,-503.56852955,0.0002527,2]
[336822451,1725192555929,-500.0,0.0002527,2]
[336822452,1725192555951,-500.0,0.0002527,2]
[336822453,1725192555974,-500.0,0.0002527,2]
[336822454,1725192555995,-500.0,0.0002527,2]
[336822455,1725192556017,-500.0,0.0002527,2]
[336822456,1725192556040,-550.78,0.0002527,2]
[336822457,1725192556060,-500.0,0.0002527,2]
[336822458,1725192556081,-352.40296083,0.0002527,2]
[336822459,1725192556102,-503.68315282,0.0002527,2]
[336822460,1725192556122,-500.0,0.0002527,2]
[336822461,1725192556143,-500.0,0.0002527,2]
[336822462,1725192556167,-500.0,0.0002527,2]
[336822463,1725192556188,-500.0,0.0002527,2]
[336822464,1725192556210,-500.0,0.0002527,2]
[336822465,1725192556232,-287.05323308,0.0002527,2]
[336822466,1725192556254,-500.0,0.0002527,2]
[336822467,1725192556278,-500.0,0.0002527,2]
[336822468,1725192556299,-500.0,0.0002527,2]
[336822469,1725192556321,-501.51833889,0.0002527,2]
[336822470,1725192556344,-500.0,0.0002527,2]
[336822471,1725192556367,-500.0,0.0002527,2]
[336822472,1725192556388,-500.0,0.0002527,2]
[336822473,1725192556409,-500.0,0.0002527,2]
[336822474,1725192556431,-500.0,0.0002527,2]
[336822475,1725192556453,-507.1311536,0.0002527,2]
[336822476,1725192556475,-377.18340044,0.0002527,2]
[336822477,1725192556497,-500.0,0.0002527,2]
[336822478,1725192556519,-500.0,0.0002527,2]
[336822479,1725192556540,-500.0,0.0002527,2]
[336822480,1725192556566,-553.22855574,0.0002527,2]
[336822481,1725192556588,-740.94,0.0002527,2]
[336822482,1725192556610,-500.0,0.0002527,2]
[336822483,1725192556633,-500.0,0.0002527,2]
[336822484,1725192556656,-1456.34,0.0002527,2]
[336822485,1725192556678,-500.0,0.0002527,2]
[336822486,1725192556700,-500.0,0.0002527,2]
[336822487,1725192556721,-500.0,0.0002527,2]
[336822488,1725192556742,-500.0,0.0002527,2]
[336822489,1725192556764,-885.34,0.0002527,2]
[336822490,1725192556785,-500.0,0.0002527,2]
[336822491,1725192556807,-522.73356696,0.0002527,2]
[336822492,1725192556829,-500.0,0.0002527,2]
[336822493,1725192556852,-500.0,0.0002527,2]
[336822494,1725192556873,-500.0,0.0002527,2]
[336822495,1725192556894,-500.0,0.0002527,2]
[336822496,1725192556914,-658.94,0.0002527,2]
[336822497,1725192556935,-500.0,0.0002527,2]
[336822498,1725192556955,-500.0,0.0002527,2]
[336822499,1725192556975,-500.0,0.0002527,2]
[336822500,1725192556997,-1872.71,0.0002527,2]
[336822501,1725192557024,-500.0,0.0002527,2]
[336822502,1725192557044,-500.0,0.0002527,2]
[336822503,1725192557066,-500.0,0.0002527,2]
[336822504,1725192557085,-500.0,0.0002527,2]
[336822505,1725192557105,-500.0,0.0002527,2]
[336822506,1725192557125,-1123.43,0.0002527,2]
[336822507,1725192557145,-500.0,0.0002527,2]
[336822508,1725192557166,-570.52,0.0002527,2]
[336822509,1725192557186,-500.0,0.0002527,2]
[336822510,1725192557211,-500.0,0.0002527,2]
[336822511,1725192557233,-500.0,0.0002527,2]
[336822512,1725192557254,-500.0,0.0002527,2]
[336822513,1725192557276,-500.0,0.0002527,2]
[336822514,1725192557296,-500.0,0.0002527,2]
[336822515,1725192557316,-502.06,0.0002527,2]
[336822516,1725192557337,-653.77,0.0002527,2]
[336822517,1725192557358,-500.0,0.0002527,2]
[336822518,1725192557378,-500.0,0.0002527,2]
[336822519,1725192557402,-500.0,0.0002527,2]
[336822520,1725192557427,-500.0,0.0002527,2]
[336822521,1725192557449,-500.0,0.0002527,2]
[336822522,1725192557470,-1340.91,0.0002527,2]
[336822523,1725192557492,-500.0,0.0002527,2]
[336822524,1725192557515,-500.0,0.0002527,2]
[336822525,1725192557535,-500.0,0.0002527,2]
[336822526,1725192557559,-500.0,0.0002527,2]
[336822527,1725192557583,-1136.27,0.0002527,2]
[336822528,1725192557604,-500.0,0.0002527,2]
[336822529,1725192557629,-500.0,0.0002527,2]
[336822530,1725192557651,-500.0,0.0002527,2]
[336822531,1725192557673,-500.0,0.0002527,2]
[336822532,1725192557695,-503.31978551,0.0002527,2]
[336822533,1725192557717,-500.0,0.0002527,2]
[336822534,1725192557737,-500.0,0.0002527,2]
[336822535,1725192557757,-505.40270031,0.0002527,2]
[336822536,1725192557778,-500.0,0.0002527,2]
[336822537,1725192557802,-500.0,0.0002527,2]
[336822538,1725192557823,-207.89046365,0.0002527,2]
[336822539,1725192557847,-500.0,0.0002527,2]
[336822540,1725192557868,-500.0,0.0002527,2]
[336822541,1725192557893,-3161.41,0.0002527,2]
[336822542,1725192557917,-500.0,0.0002527,2]
[336822543,1725192557943,-500.0,0.0002527,2]
[336822544,1725192557965,-500.0,0.0002527,2]
[336822545,1725192557985,-500.0,0.0002527,2]
[336822546,1725192558006,-500.0,0.0002527,2]
[336822547,1725192558028,-500.0,0.0002527,2]
[336822548,1725192558224,-571.10603971,0.0002527,2]
[336822549,1725192558247,-500.0,0.0002527,2]
[336822550,1725192558270,-500.0,0.0002527,2]
[336822551,1725192558292,-584.61935721,0.0002527,2]
[336822552,1725192558313,-500.0,0.0002527,2]
[336822553,1725192558335,-500.0,0.0002527,2]
[336822554,1725192558356,-500.0,0.0002527,2]
[336822555,1725192558378,-500.0,0.0002527,2]
[336822556,1725192558399,-500.0,0.0002527,2]
[336822557,1725192558423,-500.0,0.0002527,2]
[336822558,1725192558444,-500.0,0.0002527,2]
[336822559,1725192558468,-500.0,0.0002527,2]
[336822560,1725192558490,-500.0,0.0002527,2]
[336822561,1725192558510,-500.0,0.0002527,2]
[336822562,1725192558531,-500.0,0.0002527,2]
[336822563,1725192558556,-526.73,0.0002527,2]
[336822564,1725192558577,-531.4484865,0.0002527,2]
[336822565,1725192558600,-500.0,0.0002527,2]
[336822566,1725192558621,-500.0,0.0002527,2]
[336822567,1725192558646,-500.0,0.0002527,2]
[336822568,1725192558668,-1089.79,0.0002527,2]
[336822569,1725192558689,-500.0,0.0002527,2]
[336822570,1725192558709,-500.0,0.0002527,2]
[336822571,1725192558730,-500.0,0.0002527,2]
[336822572,1725192558751,-500.0,0.0002527,2]
[336822573,1725192558773,-500.0,0.0002527,2]
[336822574,1725192558796,-500.0,0.0002527,2]
[336822575,1725192558819,-590.52,0.0002527,2]
[336822576,1725192558843,-503.37387018,0.0002527,2]
[336822577,1725192558865,-500.0,0.0002527,2]
[336822578,1725192558888,-588.48,0.0002527,2]
[336822579,1725192558910,-1007.91,0.0002527,2]
[336822580,1725192558931,-310.73867141,0.0002527,2]
[336822581,1725192558953,-1497.44,0.0002527,2]
[336822582,1725192558974,-504.07065381,0.0002527,2]
[336822583,1725192558998,-500.0,0.0002527,2]
[336822584,1725192559021,-2694.9,0.0002527,2]
[336822585,1725192559044,-6376.52,0.0002527,2]
[336822586,1725192559065,-500.0,0.0002527,2]
[336822587,1725192559088,-331.13218118,0.0002527,2]
[336822588,1725192559110,-574.38,0.0002527,2]
[336822589,1725192559133,-374.61133668,0.0002527,2]
[336822590,1725192559154,-500.0,0.0002527,2]
[336822591,1725192559177,-559.85,0.0002527,2]
[336822592,1725192559198,-1097.2,0.0002527,2]
[336822593,1725192559220,-774.78,0.00025271,2]
[336822594,1725192559242,-500.0,0.00025271,2]
[336822595,1725192559269,-650.15,0.00025271,2]
[336822596,1725192559292,-638.47,0.00025271,2]
[336822597,1725192559316,-548.87,0.00025271,2]
[336822598,1725192559341,-500.0,0.00025271,2]
[336822599,1725192559362,-640.88,0.00025271,2]
[336822600,1725192559385,-500.0,0.00025272,2]
[336822601,1725192559407,-500.0,0.00025272,2]
[336822602,1725192559431,-500.0,0.00025272,2]
[336822603,1725192559454,-500.0,0.00025272,2]
[336822604,1725192559476,-500.0,0.00025273,2]
[336822605,1725192559497,-500.0,0.00025273,2]
[336822606,1725192559520,-500.0,0.00025273,2]
[336822607,1725192559543,-500.0,0.00025273,2]
[336822608,1725192559570,-789.57,0.00025273,2]
[336822609,1725192559593,-500.0,0.00025273,2]
[336822610,1725192559616,-500.0,0.00025273,2]
[336822611,1725192559640,-157.251294,0.00025288,2]
[336822612,1725192559663,-772.2176956,0.00025308,2]
[336822613,1725192559686,-157.251294,0.00025373,2]
[336822614,1725192559708,-772.2176956,0.00025376,2]
[336822615,1725192559731,-772.2176956,0.00025445,2]
[336822616,1725192559758,-157.251294,0.00025458,2]
[336822617,1725192559783,-8078.33957086,0.00025525,3]
[336822618,1725192559805,-8078.33957086,0.00025533,3]
[336822619,1725192559828,-8078.33957086,0.00025534,3]
[336822620,1725192559851,-16156.6791417,0.00025535,3]
[336822621,1725192559873,-500.0,0.00025535,2]
[336822622,1725192559894,-179.93517113,0.00025535,2]
[336822623,1725192559917,-500.0,0.00025535,2]
[336822624,1725192559938,-500.0,0.00025535,2]
[336822625,1725192559960,-500.0,0.00025535,2]
[336822626,1725192559981,-200.33468958,0.00025535,2]
[336822627,1725192560002,-8078.33957086,0.00025536,3]
[336822628,1725192560033,-2132.33,0.00025542,2]
[336822629,1725192560055,-500.0,0.00025542,2]
[336822630,1725192560076,-500.0,0.00025542,2]
[336822631,1725192560096,-500.0,0.00025542,2]
[336822632,1725192560118,-157.251294,0.00025542,2]
[336822633,1725192560138,-500.0,0.00025543,2]
[336822634,1725192560159,-500.0,0.00025543,2]
[336822635,1725192560180,-8250.99,0.00025543,2]
[336822636,1725192560202,-500.0,0.00025543,2]
[336822637,1725192560222,-500.0,0.00025543,2]
[336822638,1725192560244,-2191.27,0.00025543,2]
[336822639,1725192560266,-1692.33,0.00025543,2]
[336822640,1725192560286,-1383.39,0.00025543,2]
[336822641,1725192560308,-514.75,0.00025543,2]
[336822642,1725192560329,-500.0,0.00025543,2]
[336822643,1725192560351,-500.0,0.00025543,2]
[336822644,1725192560372,-1372.45,0.00025543,2]
[336822645,1725192560397,-649.86,0.00025543,2]
[336822646,1725192560418,-2082.74,0.00025543,2]
[336822647,1725192560440,-500.0,0.00025543,2]
[336822648,1725192560461,-12586.71,0.00025543,2]
[336822649,1725192560482,-2887.41,0.00025543,2]
[336822650,1725192560503,-689.77,0.00025543,2]
[336822651,1725192560525,-3325.33,0.00025543,2]
[336822652,1725192560546,-1584.26,0.00025543,2]
[336822653,1725192560572,-500.0,0.00025543,2]
[336822654,1725192560595,-604.73,0.00025543,2]
[336822655,1725192560618,-1027.88,0.00025543,2]
[336822656,1725192560642,-500.0,0.00025543,2]
[336822657,1725192560664,-1132.07,0.00025543,2]
[336822658,1725192560684,-509.52,0.00025543,2]
[336822659,1725192560708,-500.0,0.00025543,2]
[336822660,1725192560730,-500.0,0.00025544,2]
[336822661,1725192560750,-500.0,0.00025544,2]
[336822662,1725192560770,-500.0,0.00025544,2]
[336822663,1725192560791,-981.83,0.00025544,2]
[336822664,1725192560812,-611.39,0.00025544,2]
[336822665,1725192560834,-500.0,0.00025544,2]
[336822666,1725192560854,-500.0,0.00025544,2]
[336822667,1725192560875,-500.0,0.00025544,2]
[336822668,1725192560896,-500.0,0.00025544,2]
[336822669,1725192560917,-550.78,0.00025544,2]
[336822670,1725192560938,-500.0,0.00025544,2]
[336822671,1725192560958,-500.0,0.00025544,2]
[336822672,1725192560979,-505.01130212,0.00025544,2]
[336822673,1725192561000,-348.71289404,0.00025544,2]
[336822674,1725192561027,-500.0,0.00025544,2]
[336822675,1725192561049,-500.0,0.00025544,2]
[336822676,1725192561071,-500.0,0.00025544,2]
[336822677,1725192561092,-740.94,0.00025544,2]
[336822678,1725192561114,-500.0,0.00025544,2]
[336822679,1725192561136,-1456.34,0.00025544,2]
[336822680,1725192561157,-500.0,0.00025544,2]
[336822681,1725192561178,-500.0,0.00025544,2]
[336822682,1725192561198,-500.0,0.00025544,2]
[336822683,1725192561219,-381.24220686,0.00025544,2]
[336822684,1725192561240,-885.34,0.00025544,2]
[336822685,1725192561261,-500.0,0.00025544,2]
[336822686,1725192561285,-500.0,0.00025544,2]
[336822687,1725192561306,-500.0,0.00025544,2]
[336822688,1725192561327,-658.94,0.00025544,2]
[336822689,1725192561347,-500.0,0.00025544,2]
[336822690,1725192561367,-500.0,0.00025544,2]
[336822691,1725192561388,-500.0,0.00025544,2]
[336822692,1725192561409,-1872.71,0.00025544,2]
[336822693,1725192561429,-514.99927391,0.00025544,2]
[336822694,1725192561448,-500.0,0.00025544,2]
[336822695,1725192561469,-500.0,0.00025544,2]
[336822696,1725192561489,-500.0,0.00025544,2]
[336822697,1725192561509,-1123.43,0.00025544,2]
[336822698,1725192561532,-500.0,0.00025544,2]
[336822699,1725192561556,-570.52,0.00025544,2]
[336822700,1725192561576,-500.0,0.00025544,2]
[336822701,1725192561599,-500.0,0.00025544,2]
[336822702,1725192561619,-500.0,0.00025544,2]
[336822703,1725192561640,-502.06,0.00025544,2]
[336822704,1725192561660,-653.77,0.00025544,2]
[336822705,1725192561681,-500.0,0.00025544,2]
[336822706,1725192561702,-500.0,0.00025544,2]
[336822707,1725192561723,-500.0,0.00025544,2]
[336822708,1725192561745,-500.0,0.00025544,2]
[336822709,1725192561768,-500.0,0.00025544,2]
[336822710,1725192561789,-1340.91,0.00025544,2]
[336822711,1725192561810,-500.0,0.00025544,2]
[336822712,1725192561834,-500.0,0.00025544,2]
[336822713,1725192561861,-1136.27,0.00025544,2]
[336822714,1725192561884,-500.0,0.00025544,2]
[336822715,1725192561905,-500.0,0.00025544,2]
[336822716,1725192561926,-500.0,0.00025544,2]
[336822717,1725192561947,-500.0,0.00025544,2]
[336822718,1725192561970,-500.0,0.00025544,2]
[336822719,1725192561991,-3161.41,0.00025544,2]
[336822720,1725192562012,-500.0,0.00025544,2]
[336822721,1725192562037,-500.0,0.00025544,2]
[336822722,1725192562058,-500.0,0.00025544,2]
[336822723,1725192562079,-500.0,0.00025544,2]
[336822724,1725192562255,-500.0,0.00025544,2]
[336822725,1725192562280,-500.0,0.00025544,2]
[336822726,1725192562301,-500.0,0.00025544,2]
[336822727,1725192562324,-500.0,0.00025544,2]
[336822728,1725192562347,-500.0,0.00025544,2]
[336822729,1725192562369,-500.0,0.00025544,2]
[336822730,1725192562391,-500.0,0.00025544,2]
[336822731,1725192562415,-502.554576,0.00025544,2]
[336822732,1725192562438,-526.73,0.00025544,2]
[336822733,1725192562462,-500.0,0.00025544,2]
[336822734,1725192562483,-500.0,0.00025544,2]
[336822735,1725192562505,-500.0,0.00025544,2]
[336822736,1725192562535,-228.00972099,0.00025544,2]
[336822737,1725192562559,-1089.79,0.00025544,2]
[336822738,1725192562582,-500.0,0.00025544,2]
[336822739,1725192562604,-644.82726291,0.00025544,2]
[336822740,1725192562626,-500.0,0.00025544,2]
[336822741,1725192562652,-506.13628989,0.00025544,2]
[336822742,1725192562674,-590.52,0.00025544,2]
[336822743,1725192562697,-500.0,0.00025544,2]
[336822744,1725192562719,-588.48,0.00025544,2]
[336822745,1725192562742,-1007.91,0.00025544,2]
[336822746,1725192562764,-1497.44,0.00025544,2]
[336822747,1725192562789,-500.0,0.00025544,2]
[336822748,1725192562812,-2694.9,0.00025544,2]
[336822749,1725192562834,-6376.52,0.00025544,2]
[336822750,1725192562857,-500.0,0.00025544,2]
[336822751,1725192562878,-574.38,0.00025544,2]
[336822752,1725192562901,-559.85,0.00025544,2]
[336822753,1725192562924,-1097.2,0.00025544,2]
[336822754,1725192562949,-22824.89477852,0.00025545,11]
[336822755,1725192562971,-500.0,0.00025545,2]
[336822756,1725192562993,-500.0,0.00025545,2]
[336822757,1725192563017,-500.0,0.00025545,2]
[336822758,1725192563039,-503.86842878,0.00025545,2]
[336822759,1725192563060,-620.27,0.00025545,2]
[336822760,1725192563082,-782.08,0.00025545,2]
[336822761,1725192563104,-610.98,0.00025545,2]
[336822762,1725192563125,-500.0,0.00025545,2]
[336822763,1725192563148,-500.0,0.00025545,2]
[336822764,1725192563170,-500.0,0.00025545,2]
[336822765,1725192563191,-500.0,0.00025545,2]
[336822766,1725192563214,-500.0,0.00025545,2]
[336822767,1725192563237,-500.0,0.00025545,2]
[336822768,1725192563260,-622.73,0.00025545,2]
[336822769,1725192563282,-501.33450726,0.00025545,2]
[336822770,1725192563305,-742.03,0.00025545,2]
[336822771,1725192563331,-500.0,0.00025545,2]
[336822772,1725192563352,-500.0,0.00025545,2]
[336822773,1725192563375,-500.0,0.00025545,2]
[336822774,1725192563399,-500.0,0.00025545,2]
[336822775,1725192563423,-500.0,0.00025545,2]
[336822776,1725192563447,-506.51235212,0.00025545,2]
[336822777,1725192563468,-500.0,0.00025545,2]
[336822778,1725192563489,-500.0,0.00025545,2]
[336822779,1725192563510,-500.0,0.00025545,2]
[336822780,1725192563531,-500.0,0.00025545,2]
[336822781,1725192563554,-500.0,0.00025545,2]
[336822782,1725192563577,-500.0,0.00025545,2]
[336822783,1725192563599,-899.31,0.00025545,2]
[336822784,1725192563621,-500.0,0.00025545,2]
[336822785,1725192563645,-2416.89,0.00025545,2]
[336822786,1725192563665,-500.0,0.00025545,2]
[336822787,1725192563686,-500.0,0.00025545,2]
[336822788,1725192563708,-500.0,0.00025545,2]
[336822789,1725192563729,-500.0,0.00025545,2]
[336822790,1725192563751,-500.0,0.00025545,2]
[336822791,1725192563773,-500.0,0.00025545,2]
[336822792,1725192563793,-1489.35,0.00025545,2]
[336822793,1725192563814,-775.25,0.00025545,2]
[336822794,1725192563838,-774.78,0.00025545,2]
[336822795,1725192563861,-500.0,0.00025545,2]
[336822796,1725192563895,-500.0,0.00025545,2]
[336822797,1725192563925,-650.15,0.00025545,2]
[336822798,1725192563948,-823.45,0.00025545,2]
[336822799,1725192563970,-500.0,0.00025545,2]
[336822800,1725192563994,-638.47,0.00025545,2]
[336822801,1725192564018,-1562.51,0.00025545,2]
[336822802,1725192564042,-548.87,0.00025545,2]
[336822803,1725192564064,-567.23,0.00025545,2]
[336822804,1725192564087,-500.0,0.00025545,2]
[336822805,1725192564110,-1007.33,0.00025545,2]
[336822806,1725192564134,-500.0,0.00025545,2]
[336822807,1725192564158,-640.88,0.00025545,2]
[336822808,1725192564182,-915.62,0.00025545,2]